fUSD/lending_fUSD_20250125
["ID","MTS","AMOUNT","RATE_DAILY","PERIOD"]
[350320967,1737792638978,-500.0,0.00019398,2]
[350320968,1737792638988,-500.0,0.00019398,2]
[350320969,1737792638998,-500.0,0.00019398,2]
[350320970,1737792639008,-500.0,0.00019398,2]
[350320971,1737792639020,-500.0,0.00019398,2]
[350320972,1737792639030,-480.88947308,0.00019398,2]
[350320973,1737792639039,-500.0,0.00019398,2]
[350320974,1737792639049,-500.0,0.00019398,2]
[350320975,1737792639058,-503.61,0.00019398,2]
[350320976,1737792639068,-500.0,0.00019398,2]
[350320977,1737792639077,-500.0,0.00019398,2]
[350320978,1737792639086,-500.0,0.00019398,2]
[350320979,1737792639095,-500.0,0.00019398,2]
[350320980,1737792639104,-260.15,0.00019398,2]
[350320981,1737792639114,-500.0,0.00019398,2]
[350320982,1737792639123,-500.0,0.00019398,2]
[350320983,1737792639132,-230.152782,0.00019398,2]
[350320984,1737792639141,-500.0,0.00019398,2]
[350320985,1737792639152,-1000.0,0.00019398,2]
[350320986,1737792639162,-500.0,0.00019398,2]
[350320987,1737792639171,-500.0,0.00019398,2]
[350320988,1737792639180,-500.0,0.00019398,2]
[350320989,1737792639198,-500.0,0.00019398,2]
[350320990,1737792639209,-500.0,0.00019398,2]
[350320991,1737792639219,-500.0,0.00019398,2]
[350320992,1737792639228,-500.0,0.00019398,2]
[350320993,1737792639238,-622.75,0.00019398,2]
[350320994,1737792639247,-500.0,0.00019398,2]
[350320995,1737792639256,-500.0,0.00019398,2]
[350320996,1737792639270,-500.0,0.00019398,2]
[350320997,1737792639279,-500.0,0.00019398,2]
[350320998,1737792639288,-402.00827343,0.00019398,2]
[350320999,1737792639300,-507.88589563,0.00019398,7]
[350321000,1737792639310,-580.67,0.00019398,2]
[350321001,1737792639319,-151.0,0.00019399,2]
[350321002,1737792639328,-151.0,0.00019399,2]
[350321003,1737792639337,-151.454523,0.00019399,2]
[350321004,1737792639346,-151.0,0.00019399,2]
[350321005,1737792639356,-151.0,0.00019399,2]
[350321006,1737792639365,-156.958294,0.00019399,2]
[350321007,1737792639375,-151.524608,0.00019399,2]
[350321009,1737792639385,-366.220399,0.00019399,2]
[350321010,1737792639395,-366.220399,0.00019399,2]
[350321011,1737792639404,-366.220399,0.00019399,2]
[350321012,1737792639414,-366.220399,0.00019399,2]
[350321013,1737792639423,-151.0,0.00019399,2]
[350321014,1737792639432,-151.0,0.00019399,2]
[350321015,1737792639441,-151.0,0.00019399,2]
[350321016,1737792639455,-151.0,0.00019399,2]
[350321017,1737792639464,-151.0,0.00019399,2]
[350321019,1737792639474,-277.964009,0.00019399,2]
[350321020,1737792639483,-486.951562,0.00019399,2]
[350321021,1737792639493,-154.045841,0.00019399,2]
[350321022,1737792639502,-151.0,0.00019399,2]
[350321023,1737792639511,-151.0,0.00019399,2]
[350321024,1737792639521,-151.0,0.00019399,2]
[350321025,1737792639530,-151.0,0.00019399,2]
[350321026,1737792639540,-151.0,0.00019399,2]
[350321027,1737792639550,-500.0,0.00019399,2]
[350321028,1737792639559,-500.0,0.00019399,2]
[350321029,1737792639568,-233.495797,0.00019399,2]
[350321030,1737792639578,-233.495797,0.00019399,2]
[350321031,1737792639587,-500.0,0.00019399,2]
[350321032,1737792639596,-233.495797,0.00019399,2]
[350321033,1737792639607,-233.495797,0.00019399,2]
[350321034,1737792639616,-500.0,0.00019399,2]
[350321035,1737792639625,-500.0,0.00019399,2]
[350321036,1737792639635,-314.008464,0.00019399,2]
[350321037,1737792639644,-168.975161,0.00019399,2]
[350321038,1737792639653,-168.975161,0.00019399,2]
[350321039,1737792639663,-294192.4733148,0.000194,2]
[350321042,1737792640285,-150.0,0.00019276,2]
[350321043,1737792640297,-361.54033748,0.00019298,2]
[350321044,1737792640307,-492.10761274,0.00019298,2]
[350321045,1737792640321,-34062.73638726,0.00019298,2]
[350321046,1737792640331,-344557.97232308,0.000194,2]
[350321047,1737792640378,-151.0,0.00019289,2]
[350321048,1737792640389,-563.79,0.00019298,2]
[350321049,1737792640398,-139.57138601,0.000194,2]
[350321063,1737792642562,-151.0,0.00019113,2]
[350321064,1737792642571,-168.64023808,0.00019199,2]
[350321065,1737792642581,-151.0,0.00019213,2]
[350321066,1737792642590,-500.0,0.00019239,2]
[350321067,1737792642600,-151.0,0.00019239,2]
[350321068,1737792642610,-500.0,0.00019298,2]
[350321069,1737792642620,-151.0,0.000193,2]
[350321070,1737792642630,-151.0,0.00019339,2]
[350321071,1737792642639,-552.37,0.00019376,2]
[350321072,1737792642649,-500.0,0.00019398,2]
[350321073,1737792642660,-26566.31664552,0.000194,2]
[350321074,1737792642718,-2661.84024499,0.000194,2]
[350321095,1737792645591,-151.0,0.0001925,2]
[350321096,1737792645600,-151.0,0.00019289,2]
[350321097,1737792645610,-383.34505,0.00019298,2]
[350321098,1737792645619,-15.33108816,0.00019339,2]
[350321099,1737792645748,-484.66891184,0.00019339,2]
[350321100,1737792645757,-131.73599312,0.00019366,2]
[350321119,1737793061050,151.95,0.00010137,2]
[350321136,1737793368083,322.99687647,0.00022,120]
[350321138,1737793508384,85500.0,0.00012,2]
[350321139,1737793508412,90504.10634623,0.00012,2]
[350321140,1737793537115,-235.19985434,0.000154,2]
[350321141,1737793537136,-988.65,0.00016358,2]
[350321142,1737793537157,-151.95,0.00017184,2]
[350321143,1737793537178,-1168.54987639,0.00018,2]
[350321144,1737793537199,-300.0,0.00018163,2]
[350321145,1737793537219,-65.39312567,0.00018164,2]
[350321161,1737793562477,2841.96454601,0.0001,2]
[350321163,1737793676781,3509.35525494,0.0001,2]
[350321164,1737793680369,115893.44034155,0.0001,2]
[350321165,1737793680401,20000.0,0.0001,2]
[350321166,1737793707226,375.00543362,7.888e-05,2]
[350321167,1737793722052,6969.79127252,8e-05,2]
[350321169,1737793723767,62221.99653719,8e-05,2]
[350321170,1737793761083,-300.0,9.999e-05,2]
[350321171,1737793761103,-787.22053897,0.0001,2]
[350321172,1737793763076,-4080.05770069,0.0001,2]
[350321173,1737793765079,-7138.11334987,0.0001,2]
[350321174,1737793767107,-4489.57151149,0.0001,2]
[350321175,1737793799982,-150000.0,0.0001,2]
[350321176,1737793800442,1772.8888,7e-05,2]
[350321181,1737793831685,-158.045666,9.948e-05,2]
[350321182,1737793831695,-296.87962619,9.999e-05,2]
[350321183,1737793831795,-3.12037381,9.999e-05,2]
[350321184,1737793831804,-286358.50549901,0.0001,2]
[350321185,1737793831815,-464.77659507,0.000108,2]
[350321186,1737793831825,-180.67869314,0.000109,2]
[350321187,1737793831835,-420.0,0.00010999,2]
[350321188,1737793831845,-587.0,0.00012099,2]
[350321189,1737793831854,-823.0,0.00013309,2]
[350321190,1737793831863,-237.35,0.000137,2]
[350321191,1737793831872,-169.0,0.0001464,2]
[350321192,1737793831881,-2142.54062162,0.00015,2]
[350321193,1737793831891,-550.0,0.00015,2]
[350321194,1737793831900,-500.0,0.00016438,2]
[350321195,1737793831910,-500.0,0.00016438,2]
[350321196,1737793831919,-500.0,0.00016438,2]
[350321197,1737793831929,-576.94,0.00016438,2]
[350321198,1737793831938,-701.53,0.00016438,2]
[350321199,1737793831947,-500.0,0.00016438,2]
[350321200,1737793831956,-500.0,0.00016438,2]
[350321201,1737793831965,-1251.98,0.00016438,2]
[350321202,1737793831975,-648.92,0.00016438,2]
[350321203,1737793831985,-500.0,0.00016438,2]
[350321204,1737793831994,-2299.97,0.00016438,2]
[350321205,1737793832005,-636.97,0.00016438,2]
[350321206,1737793832014,-642.3205739,0.00016438,2]
[350321207,1737793832023,-500.0,0.00016438,2]
[350321208,1737793832035,-500.0,0.00016438,2]
[350321209,1737793832044,-533.21,0.00016438,2]
[350321210,1737793832054,-500.0,0.00016438,2]
[350321211,1737793832064,-500.0,0.00016438,2]
[350321212,1737793832075,-2669.48,0.00016438,2]
[350321213,1737793832085,-500.0,0.00016438,2]
[350321214,1737793832094,-500.0,0.00016438,2]
[350321215,1737793832103,-462.21890117,0.00016438,2]
[350321216,1737793832113,-500.0,0.00016575,2]
[350321217,1737793832123,-500.0,0.00016575,2]
[350321218,1737793832133,-500.0,0.00016575,2]
[350321219,1737793832142,-576.94,0.00016575,2]
[350321220,1737793832151,-701.53,0.00016575,2]
[350321221,1737793832160,-500.0,0.00016575,2]
[350321222,1737793832169,-500.0,0.00016575,2]
[350321223,1737793832177,-1251.98,0.00016575,2]
[350321224,1737793832186,-648.92,0.00016575,2]
[350321225,1737793832195,-500.0,0.00016575,2]
[350321226,1737793832204,-2299.97,0.00016575,2]
[350321227,1737793832213,-636.97,0.00016575,2]
[350321228,1737793832222,-524.4716398,0.00016575,2]
[350321229,1737793832230,-500.0,0.00016575,2]
[350321230,1737793832239,-533.21,0.00016575,2]
[350321231,1737793832248,-500.0,0.00016575,2]
[350321232,1737793832258,-500.0,0.00016575,2]
[350321233,1737793832267,-2669.48,0.00016575,2]
[350321234,1737793832276,-500.0,0.00016575,2]
[350321236,1737793832286,-500.0,0.00016575,2]
[350321238,1737793832295,-500.0,0.00016712,2]
[350321240,1737793832305,-500.0,0.00016712,2]
[350321242,1737793832314,-500.0,0.00016712,2]
[350321244,1737793832324,-576.94,0.00016712,2]
[350321246,1737793832333,-701.53,0.00016712,2]
[350321248,1737793832344,-500.0,0.00016712,2]
[350321250,1737793832353,-500.0,0.00016712,2]
[350321252,1737793832362,-1251.98,0.00016712,2]
[350321254,1737793832371,-648.92,0.00016712,2]
[350321256,1737793832380,-500.0,0.00016712,2]
[350321258,1737793832389,-2299.97,0.00016712,2]
[350321260,1737793832399,-636.97,0.00016712,2]
[350321262,1737793832408,-500.0,0.00016712,2]
[350321264,1737793832418,-533.21,0.00016712,2]
[350321267,1737793832426,-500.0,0.00016712,2]
[350321270,1737793832435,-641.52058968,0.00016712,2]
[350321273,1737793832444,-2669.48,0.00016712,2]
[350321276,1737793832454,-500.0,0.00016712,2]
[350321279,1737793832463,-500.0,0.00016712,2]
[350321282,1737793832471,-500.0,0.00016849,2]
[350321285,1737793832481,-500.0,0.00016849,2]
[350321288,1737793832490,-500.0,0.00016849,2]
[350321291,1737793832499,-576.94,0.00016849,2]
[350321294,1737793832510,-701.53,0.00016849,2]
[350321296,1737793832519,-227.83809929,0.00016849,2]
[350321299,1737793832528,-500.0,0.00016849,2]
[350321303,1737793832539,-1251.98,0.00016849,2]
[350321307,1737793832548,-648.92,0.00016849,2]
[350321309,1737793832558,-500.0,0.00016849,2]
[350321312,1737793832566,-2299.97,0.00016849,2]
[350321314,1737793832575,-636.97,0.00016849,2]
[350321317,1737793832584,-500.0,0.00016849,2]
[350321320,1737793832593,-533.21,0.00016849,2]
[350321323,1737793832602,-500.0,0.00016849,2]
[350321326,1737793832611,-2669.48,0.00016849,2]
[350321329,1737793832621,-500.0,0.00016849,2]
[350321332,1737793832630,-622.66830338,0.00016849,2]
[350321334,1737793832639,-500.0,0.00016986,2]
[350321336,1737793832648,-500.0,0.00016986,2]
[350321337,1737793832658,-500.0,0.00016986,2]
[350321339,1737793832667,-576.94,0.00016986,2]
[350321341,1737793832676,-701.53,0.00016986,2]
[350321343,1737793832685,-500.0,0.00016986,2]
[350321345,1737793832695,-1251.98,0.00016986,2]
[350321347,1737793832704,-648.92,0.00016986,2]
[350321349,1737793832713,-500.0,0.00016986,2]
[350321351,1737793832722,-2299.97,0.00016986,2]
[350321353,1737793832732,-636.97,0.00016986,2]
[350321355,1737793832741,-500.0,0.00016986,2]
[350321357,1737793832750,-533.21,0.00016986,2]
[350321358,1737793832762,-500.0,0.00016986,2]
[350321360,1737793832771,-2669.48,0.00016986,2]
[350321361,1737793832780,-391.83599999,0.00016986,2]
[350321362,1737793832789,-600.0,0.00017,2]
[350321363,1737793832798,-500.0,0.00017123,2]
[350321364,1737793832807,-500.0,0.00017123,2]
[350321365,1737793832816,-500.0,0.00017123,2]
[350321366,1737793832826,-576.94,0.00017123,2]
[350321367,1737793832835,-701.53,0.00017123,2]
[350321368,1737793832846,-500.0,0.00017123,2]
[350321369,1737793832855,-1251.98,0.00017123,2]
[350321370,1737793832864,-648.92,0.00017123,2]
[350321371,1737793832875,-500.0,0.00017123,2]
[350321372,1737793832884,-2299.97,0.00017123,2]
[350321373,1737793832893,-636.97,0.00017123,2]
[350321374,1737793832902,-500.0,0.00017123,2]
[350321375,1737793832912,-533.21,0.00017123,2]
[350321376,1737793832921,-500.0,0.00017123,2]
[350321377,1737793832930,-2669.48,0.00017123,2]
[350321378,1737793832940,-500.0,0.0001726,2]
[350321379,1737793832949,-500.0,0.0001726,2]
[350321380,1737793832959,-500.0,0.0001726,2]
[350321381,1737793832968,-576.94,0.0001726,2]
[350321382,1737793832977,-701.53,0.0001726,2]
[350321383,1737793832986,-500.0,0.0001726,2]
[350321384,1737793832995,-1251.98,0.0001726,2]
[350321385,1737793833005,-648.92,0.0001726,2]
[350321386,1737793833014,-500.0,0.0001726,2]
[350321387,1737793833024,-2299.97,0.0001726,2]
[350321388,1737793833033,-636.97,0.0001726,2]
[350321389,1737793833043,-318.05406389,0.0001726,2]
[350321390,1737793833053,-533.21,0.0001726,2]
[350321391,1737793833062,-500.0,0.0001726,2]
[350321392,1737793833072,-2669.48,0.0001726,2]
[350321393,1737793833081,-500.0,0.00017397,2]
[350321394,1737793833090,-500.0,0.00017397,2]
[350321395,1737793833100,-500.0,0.00017397,2]
[350321396,1737793833109,-576.94,0.00017397,2]
[350321397,1737793833118,-701.53,0.00017397,2]
[350321398,1737793833127,-500.0,0.00017397,2]
[350321399,1737793833136,-1251.98,0.00017397,2]
[350321400,1737793833146,-648.92,0.00017397,2]
[350321401,1737793833155,-500.0,0.00017397,2]
[350321402,1737793833164,-2299.97,0.00017397,2]
[350321403,1737793833174,-636.97,0.00017397,2]
[350321404,1737793833183,-533.21,0.00017397,2]
[350321405,1737793833192,-500.0,0.00017397,2]
[350321406,1737793833202,-2669.48,0.00017397,2]
[350321407,1737793833212,-500.0,0.00017534,2]
[350321408,1737793833222,-500.0,0.00017534,2]
[350321409,1737793833231,-500.0,0.00017534,2]
[350321410,1737793833241,-576.94,0.00017534,2]
[350321411,1737793833251,-701.53,0.00017534,2]
[350321412,1737793833262,-500.0,0.00017534,2]
[350321413,1737793833272,-1251.98,0.00017534,2]
[350321414,1737793833281,-648.92,0.00017534,2]
[350321415,1737793833291,-500.0,0.00017534,2]
[350321416,1737793833300,-2299.97,0.00017534,2]
[350321417,1737793833310,-636.97,0.00017534,2]
[350321418,1737793833320,-533.21,0.00017534,2]
[350321419,1737793833329,-500.0,0.00017534,2]
[350321420,1737793833340,-2669.48,0.00017534,2]
[350321421,1737793833352,-500.0,0.00017671,2]
[350321422,1737793833362,-500.0,0.00017671,2]
[350321423,1737793833372,-647.45,0.00017671,2]
[350321424,1737793833382,-576.94,0.00017671,2]
[350321425,1737793833392,-701.53,0.00017671,2]
[350321426,1737793833401,-500.0,0.00017671,2]
[350321427,1737793833411,-1251.98,0.00017671,2]
[350321428,1737793833421,-648.92,0.00017671,2]
[350321429,1737793833431,-500.0,0.00017671,2]
[350321430,1737793833440,-2299.97,0.00017671,2]
[350321431,1737793833450,-636.97,0.00017671,2]
[350321432,1737793833460,-533.21,0.00017671,2]
[350321433,1737793833470,-500.0,0.00017671,2]
[350321434,1737793833479,-2669.48,0.00017671,2]
[350321435,1737793833488,-11800.76,0.00017772,2]
[350321436,1737793833497,-500.0,0.00017808,2]
[350321437,1737793833507,-500.0,0.00017808,2]
[350321438,1737793833516,-576.94,0.00017808,2]
[350321439,1737793833526,-701.53,0.00017808,2]
[350321440,1737793833535,-500.0,0.00017808,2]
[350321441,1737793833544,-1251.98,0.00017808,2]
[350321442,1737793833554,-648.92,0.00017808,2]
[350321443,1737793833563,-500.0,0.00017808,2]
[350321444,1737793833572,-2299.97,0.00017808,2]
[350321445,1737793833582,-636.97,0.00017808,2]
[350321446,1737793833591,-533.21,0.00017808,2]
[350321447,1737793833600,-500.93378437,0.00017808,2]
[350321448,1737793833610,-2669.48,0.00017808,2]
[350321449,1737793833621,-500.0,0.00017945,2]
[350321450,1737793833630,-582.89,0.00017945,2]
[350321451,1737793833639,-576.94,0.00017945,2]
[350321452,1737793833649,-701.53,0.00017945,2]
[350321453,1737793833658,-500.0,0.00017945,2]
[350321454,1737793833668,-1251.98,0.00017945,2]
[350321455,1737793833826,-648.92,0.00017945,2]
[350321456,1737793833836,-500.0,0.00017945,2]
[350321457,1737793833846,-2299.97,0.00017945,2]
[350321458,1737793833856,-636.97,0.00017945,2]
[350321459,1737793833865,-533.21,0.00017945,2]
[350321460,1737793833875,-2669.48,0.00017945,2]
[350321461,1737793833885,-369.70150112,0.00018082,2]
[350321462,1737793833896,-576.94,0.00018082,2]
[350321463,1737793833905,-701.53,0.00018082,2]
[350321464,1737793833915,-500.0,0.00018082,2]
[350321465,1737793833924,-1251.98,0.00018082,2]
[350321466,1737793833934,-648.92,0.00018082,2]
[350321467,1737793833943,-500.0,0.00018082,2]
[350321468,1737793833953,-2299.97,0.00018082,2]
[350321469,1737793833963,-636.97,0.00018082,2]
[350321470,1737793833972,-533.21,0.00018082,2]
[350321471,1737793833982,-2669.48,0.00018082,2]
[350321472,1737793833991,-500.0,0.00018164,2]
[350321473,1737793834000,-500.0,0.00018164,2]
[350321474,1737793834011,-251.93,0.00018164,2]
[350321475,1737793834020,-246.15,0.00018164,2]
[350321476,1737793834030,-245.65,0.00018164,2]
[350321477,1737793834039,-251.8,0.00018164,2]
[350321478,1737793834049,-247.75,0.00018164,2]
[350321479,1737793834059,-254.87,0.00018164,2]
[350321480,1737793834068,-249.98,0.00018164,2]
[350321481,1737793834079,-249.4,0.00018164,2]
[350321482,1737793834088,-252.59,0.00018164,2]
[350321483,1737793834098,-247.05,0.00018164,2]
[350321484,1737793834107,-246.25,0.00018164,2]
[350321485,1737793834117,-252.01,0.00018164,2]
[350321486,1737793834126,-247.77,0.00018164,2]
[350321487,1737793834137,-251.53,0.00018164,2]
[350321488,1737793834146,-252.92,0.00018164,2]
[350321489,1737793834155,-245.73,0.00018164,2]
[350321490,1737793834165,-252.63,0.00018164,2]
[350321491,1737793834175,-250.25,0.00018164,2]
[350321492,1737793834184,-245.37,0.00018164,2]
[350321493,1737793834194,-249.56,0.00018164,2]
[350321494,1737793834203,-245.83,0.00018164,2]
[350321495,1737793834212,-248.45,0.00018164,2]
[350321496,1737793834221,-245.38,0.00018164,2]
[350321497,1737793834231,-254.73,0.00018164,2]
[350321498,1737793834241,-314.21,0.00018174,2]
[350321499,1737793834250,-576.94,0.00018219,2]
[350321500,1737793834260,-701.53,0.00018219,2]
[350321501,1737793834270,-500.0,0.00018219,2]
[350321502,1737793834280,-1251.98,0.00018219,2]
[350321503,1737793834290,-648.92,0.00018219,2]
[350321504,1737793834300,-500.0,0.00018219,2]
[350321505,1737793834310,-2299.97,0.00018219,2]
[350321506,1737793834320,-636.97,0.00018219,2]
[350321507,1737793834329,-533.21,0.00018219,2]
[350321508,1737793834339,-2669.48,0.00018219,2]
[350321509,1737793834352,-456.33,0.00018255,2]
[350321510,1737793834361,-1000.0,0.00018255,2]
[350321511,1737793834371,-286.81,0.00018273,2]
[350321512,1737793834381,-1852.42,0.00018278,2]
[350321513,1737793834391,-175.42,0.00018287,2]
[350321514,1737793834400,-250.0,0.00018305,2]
[350321515,1737793834410,-576.94,0.00018356,2]
[350321516,1737793834419,-701.53,0.00018356,2]
[350321517,1737793834428,-500.0,0.00018356,2]
[350321518,1737793834440,-1251.98,0.00018356,2]
[350321519,1737793834450,-648.92,0.00018356,2]
[350321520,1737793834459,-500.0,0.00018356,2]
[350321521,1737793834468,-2299.97,0.00018356,2]
[350321522,1737793834477,-636.97,0.00018356,2]
[350321523,1737793834486,-533.21,0.00018356,2]
[350321524,1737793834495,-2669.48,0.00018356,2]
[350321525,1737793834506,-1274.81,0.00018442,2]
[350321526,1737793834516,-3905.0,0.00018442,2]
[350321527,1737793834525,-2026.506,0.00018442,2]
[350321528,1737793834534,-151.166,0.00018442,2]
[350321529,1737793834544,-576.94,0.00018493,2]
[350321530,1737793834553,-701.53,0.00018493,2]
[350321531,1737793834562,-500.0,0.00018493,2]
[350321532,1737793834572,-1251.98,0.00018493,2]
[350321533,1737793834581,-648.92,0.00018493,2]
[350321534,1737793834590,-500.0,0.00018493,2]
[350321535,1737793834599,-2299.97,0.00018493,2]
[350321536,1737793834609,-636.97,0.00018493,2]
[350321537,1737793834618,-533.21,0.00018493,2]
[350321538,1737793834627,-2669.48,0.00018493,2]
[350321539,1737793834637,-988.65,0.00018622,2]
[350321540,1737793834646,-576.94,0.0001863,2]
[350321541,1737793834655,-701.53,0.0001863,2]
[350321542,1737793834664,-500.0,0.0001863,2]
[350321543,1737793834673,-1251.98,0.0001863,2]
[350321544,1737793834683,-648.92,0.0001863,2]
[350321545,1737793834692,-500.0,0.0001863,2]
[350321546,1737793834702,-2299.97,0.0001863,2]
[350321547,1737793834711,-636.97,0.0001863,2]
[350321548,1737793834720,-533.21,0.0001863,2]
[350321549,1737793834729,-2669.48,0.0001863,2]
[350321550,1737793834738,-576.94,0.00018767,2]
[350321551,1737793834748,-701.53,0.00018767,2]
[350321552,1737793834759,-500.0,0.00018767,2]
[350321553,1737793834768,-1251.98,0.00018767,2]
[350321554,1737793834777,-648.92,0.00018767,2]
[350321555,1737793834787,-500.0,0.00018767,2]
[350321556,1737793834796,-2299.97,0.00018767,2]
[350321557,1737793834806,-636.97,0.00018767,2]
[350321558,1737793834815,-533.21,0.00018767,2]
[350321559,1737793834825,-2669.48,0.00018767,2]
[350321560,1737793834834,-576.94,0.00018904,2]
[350321561,1737793834843,-701.53,0.00018904,2]
[350321562,1737793834852,-500.0,0.00018904,2]
[350321563,1737793834862,-1251.98,0.00018904,2]
[350321564,1737793834871,-648.92,0.00018904,2]
[350321565,1737793834880,-500.0,0.00018904,2]
[350321566,1737793834889,-2299.97,0.00018904,2]
[350321567,1737793834899,-636.97,0.00018904,2]
[350321568,1737793834908,-533.21,0.00018904,2]
[350321569,1737793834918,-2669.48,0.00018904,2]
[350321570,1737793834927,-650.0,0.00019,2]
[350321571,1737793834937,-622.824514,0.00019012,2]
[350321572,1737793834947,-576.94,0.00019041,2]
[350321573,1737793834957,-701.53,0.00019041,2]
[350321574,1737793834965,-500.0,0.00019041,2]
[350321575,1737793834975,-1251.98,0.00019041,2]
[350321576,1737793834984,-648.92,0.00019041,2]
[350321577,1737793834994,-500.0,0.00019041,2]
[350321578,1737793835004,-2299.97,0.00019041,2]
[350321579,1737793835014,-636.97,0.00019041,2]
[350321580,1737793835023,-533.21,0.00019041,2]
[350321581,1737793835032,-2669.48,0.00019041,2]
[350321582,1737793835041,-253.97,0.00019097,2]
[350321583,1737793835051,-1849.0,0.000191,2]
[350321584,1737793835059,-246.28,0.00019132,2]
[350321585,1737793835069,-355.8029,0.00019139,2]
[350321586,1737793835078,-194.163,0.0001914,2]
[350321587,1737793835087,-1374.673,0.0001914,2]
[350321588,1737793835096,-150.0,0.00019171,2]
[350321589,1737793835105,-150.0,0.00019176,2]
[350321590,1737793835114,-150.0,0.00019176,2]
[350321591,1737793835124,-150.0,0.00019177,2]
[350321592,1737793835133,-576.94,0.00019178,2]
[350321593,1737793835142,-701.53,0.00019178,2]
[350321594,1737793835151,-500.0,0.00019178,2]
[350321595,1737793835160,-1251.98,0.00019178,2]
[350321596,1737793835170,-648.92,0.00019178,2]
[350321597,1737793835179,-500.0,0.00019178,2]
[350321598,1737793835189,-2299.97,0.00019178,2]
[350321599,1737793835198,-636.97,0.00019178,2]
[350321600,1737793835207,-533.21,0.00019178,2]
[350321601,1737793835216,-2669.48,0.00019178,2]
[350321602,1737793835226,-150.0,0.00019186,2]
[350321603,1737793835235,-286.81,0.00019186,2]
[350321604,1737793835247,-175.42,0.0001919,2]
[350321605,1737793835261,-270.40701773,0.000192,2]
[350321606,1737793835272,-192.3134371,0.000192,2]
[350321607,1737793835284,-427.58353797,0.000192,2]
[350321608,1737793835295,-154.70960458,0.000192,3]
[350321609,1737793835306,-26552.89906535,0.000192,2]
[350321610,1737793835319,-2744.21283378,0.000192,2]
[350321611,1737793835331,-2760.58486,0.0001921,2]
[350321612,1737793835343,-1351.29243496,0.00019215,2]
[350321613,1737793835356,-150.0,0.00019218,2]
[350321614,1737793835380,-150.0,0.00019221,2]
[350321615,1737793835396,-500.0,0.00019239,2]
[350321616,1737793835411,-500.0,0.00019239,2]
[350321617,1737793835426,-500.0,0.00019239,2]
[350321618,1737793835442,-500.0,0.00019239,2]
[350321619,1737793835454,-500.0,0.00019239,2]
[350321620,1737793835465,-500.0,0.00019239,2]
[350321621,1737793835477,-500.0,0.00019239,2]
[350321622,1737793835489,-500.0,0.00019239,2]
[350321623,1737793835503,-500.0,0.00019239,2]
[350321624,1737793835517,-500.0,0.00019239,2]
[350321625,1737793835530,-500.0,0.00019239,2]
[350321626,1737793835543,-500.0,0.00019239,2]
[350321627,1737793835555,-500.0,0.00019239,2]
[350321628,1737793835568,-500.0,0.00019239,2]
[350321629,1737793835581,-500.0,0.00019239,2]
[350321630,1737793835593,-500.0,0.00019239,2]
[350321631,1737793835604,-500.0,0.00019239,2]
[350321632,1737793835618,-500.0,0.00019239,2]